[Event "Late-Titled-Tuesday-Blitz-October-03-2023"]
[Site "Chess.com"]
[Date "2023.10.03"]
[Round "5"]
[White "YouShallNotPass001"]
[Black "AyMitecK"]
[Result "0-1"]
[WhiteElo "2392"]
[BlackElo "2547"]
[TimeControl "180+1"]
[EndTime "14:49:12 PDT"]
[Termination "AyMitecK won by resignation"]

1. Nf3 {[%clk 0:03:00.9]} 1... e6 {[%clk 0:03:00.9]} 2. e3 {[%clk 0:03:01.8]}
2... Nf6 {[%clk 0:02:59.7]} 3. Be2 {[%clk 0:03:02.1]} 3... d5 {[%clk 0:02:59.6]}
4. O-O {[%clk 0:03:03]} 4... c5 {[%clk 0:03:00]} 5. c4 {[%clk 0:03:02.7]} 5...
Nc6 {[%clk 0:03:00.9]} 6. b3 {[%clk 0:03:00.3]} 6... d4 {[%clk 0:02:59.8]} 7.
exd4 {[%clk 0:03:00.1]} 7... cxd4 {[%clk 0:03:00]} 8. d3 {[%clk 0:03:00.6]} 8...
Bc5 {[%clk 0:02:59.7]} 9. a3 {[%clk 0:03:00.7]} 9... a5 {[%clk 0:02:59.5]} 10.
Bb2 {[%clk 0:03:00.5]} 10... O-O {[%clk 0:02:59]} 11. Nbd2 {[%clk 0:02:59.9]}
11... e5 {[%clk 0:02:58]} 12. Re1 {[%clk 0:03:00.4]} 12... Re8 {[%clk
0:02:57.5]} 13. h3 {[%clk 0:02:58.2]} 13... h6 {[%clk 0:02:54.5]} 14. Bf1 {[%clk
0:02:58.6]} 14... Bf5 {[%clk 0:02:53.4]} 15. Nh4 {[%clk 0:02:57.1]} 15... Bh7
{[%clk 0:02:53.1]} 16. Qf3 {[%clk 0:02:57]} 16... e4 {[%clk 0:02:43.1]} 17. dxe4
{[%clk 0:02:54.1]} 17... Ne5 {[%clk 0:02:42.2]} 18. Qg3 {[%clk 0:02:53]} 18...
Nh5 {[%clk 0:02:35.6]} 19. Qh2 {[%clk 0:02:30.8]} 19... Qxh4 {[%clk 0:02:33.1]}
20. g3 {[%clk 0:02:24.2]} 20... Qg5 {[%clk 0:02:31]} 21. f4 {[%clk 0:02:12.9]}
21... Nxf4 {[%clk 0:02:29.6]} 22. Kh1 {[%clk 0:02:12.2]} 22... Nfd3 {[%clk
0:02:25.9]} 23. Bxd3 {[%clk 0:02:08]} 23... Nxd3 {[%clk 0:02:26.8]} 0-1

[Event "Late-Titled-Tuesday-Blitz-October-03-2023"]
[Site "Chess.com"]
[Date "2023.10.03"]
[Round "5"]
[White "rookoco"]
[Black "zverr1"]
[Result "1-0"]
[WhiteElo "2755"]
[BlackElo "2526"]
[TimeControl "180+1"]
[EndTime "14:49:24 PDT"]
[Termination "rookoco won by resignation"]

1. e4 {[%clk 0:02:59.7]} 1... c5 {[%clk 0:02:56.7]} 2. c3 {[%clk 0:02:55.7]}
2... g6 {[%clk 0:02:56.7]} 3. d4 {[%clk 0:02:45.8]} 3... cxd4 {[%clk 0:02:57.6]}
4. cxd4 {[%clk 0:02:44.6]} 4... d5 {[%clk 0:02:57.7]} 5. e5 {[%clk 0:02:44]}
5... a6 {[%clk 0:02:57.4]} 6. h3 {[%clk 0:02:43.8]} 6... Nc6 {[%clk 0:02:56.7]}
7. Nf3 {[%clk 0:02:43.5]} 7... Bg7 {[%clk 0:02:56.8]} 8. Be2 {[%clk 0:02:42.7]}
8... f6 {[%clk 0:02:56.2]} 9. exf6 {[%clk 0:02:41.8]} 9... Nxf6 {[%clk
0:02:57.1]} 10. O-O {[%clk 0:02:41.4]} 10... O-O {[%clk 0:02:57.7]} 11. Nc3
{[%clk 0:02:41.6]} 11... Nh5 {[%clk 0:02:49.8]} 12. Re1 {[%clk 0:02:22.1]} 12...
Nf4 {[%clk 0:02:44.4]} 13. Bf1 {[%clk 0:02:22.1]} 13... Qd6 {[%clk 0:02:28]} 14.
Ne5 {[%clk 0:02:03.8]} 14... Nxe5 {[%clk 0:01:57.1]} 15. dxe5 {[%clk 0:01:59]}
15... Bf6 {[%clk 0:01:58]} 16. exd6 {[%clk 0:01:58.7]} 1-0

[Event "Late-Titled-Tuesday-Blitz-October-03-2023"]
[Site "Chess.com"]
[Date "2023.10.03"]
[Round "5"]
[White "slorovel"]
[Black "Verony64"]
[Result "1-0"]
[WhiteElo "2487"]
[BlackElo "2234"]
[TimeControl "180+1"]
[EndTime "14:49:32 PDT"]
[Termination "slorovel won by resignation"]

1. a3 {[%clk 0:02:55.9]} 1... d6 {[%clk 0:02:54.7]} 2. d4 {[%clk 0:02:54.8]}
2... Nd7 {[%clk 0:02:53.3]} 3. c4 {[%clk 0:02:54.2]} 3... c6 {[%clk 0:02:53.7]}
4. Nc3 {[%clk 0:02:54.3]} 4... e5 {[%clk 0:02:54.2]} 5. Nf3 {[%clk 0:02:52.3]}
5... f5 {[%clk 0:02:53.7]} 6. Bg5 {[%clk 0:02:51.1]} 6... Be7 {[%clk 0:02:53.1]}
7. Bxe7 {[%clk 0:02:51]} 7... Qxe7 {[%clk 0:02:51.9]} 8. e3 {[%clk 0:02:51.5]}
8... Ngf6 {[%clk 0:02:51.5]} 9. Be2 {[%clk 0:02:51.9]} 9... O-O {[%clk
0:02:51.6]} 10. O-O {[%clk 0:02:50.2]} 10... e4 {[%clk 0:02:51.8]} 11. Nd2
{[%clk 0:02:50.2]} 11... d5 {[%clk 0:02:52.1]} 12. cxd5 {[%clk 0:02:49.8]} 12...
cxd5 {[%clk 0:02:52.8]} 13. Qb3 {[%clk 0:02:50.5]} 13... Qf7 {[%clk 0:02:47.3]}
14. f3 {[%clk 0:02:40.7]} 14... f4 {[%clk 0:02:19.3]} 15. fxe4 {[%clk
0:02:37.4]} 15... fxe3 {[%clk 0:02:18.7]} 16. Nf3 {[%clk 0:02:26.7]} 16... dxe4
{[%clk 0:02:18.1]} 17. Bc4 {[%clk 0:02:24.4]} 17... exf3 {[%clk 0:02:13.4]} 18.
Bxf7+ {[%clk 0:02:17]} 18... Rxf7 {[%clk 0:02:14.3]} 19. Rxf3 {[%clk 0:02:16.8]}
19... Nf8 {[%clk 0:02:08.5]} 20. Rxe3 {[%clk 0:02:12.4]} 20... Bf5 {[%clk
0:02:04]} 21. Rf1 {[%clk 0:02:09.5]} 21... g6 {[%clk 0:02:04.5]} 22. Re7 {[%clk
0:02:05.5]} 1-0

[Event "Late-Titled-Tuesday-Blitz-October-03-2023"]
[Site "Chess.com"]
[Date "2023.10.03"]
[Round "5"]
[White "azikom"]
[Black "Nick12772"]
[Result "1-0"]
[WhiteElo "2588"]
[BlackElo "2359"]
[TimeControl "180+1"]
[EndTime "14:50:18 PDT"]
[Termination "azikom won by resignation"]

1. c4 {[%clk 0:03:00]} 1... Nf6 {[%clk 0:03:00.1]} 2. Nc3 {[%clk 0:02:59.6]}
2... d5 {[%clk 0:03:00.4]} 3. cxd5 {[%clk 0:02:58.3]} 3... Nxd5 {[%clk
0:03:01.3]} 4. Nf3 {[%clk 0:02:58.8]} 4... g6 {[%clk 0:03:01.4]} 5. Qa4+ {[%clk
0:02:58.6]} 5... c6 {[%clk 0:03:01.3]} 6. Nxd5 {[%clk 0:02:52.9]} 6... Qxd5
{[%clk 0:03:00]} 7. g3 {[%clk 0:02:53.5]} 7... Bg7 {[%clk 0:02:56.3]} 8. Bg2
{[%clk 0:02:53.8]} 8... O-O {[%clk 0:02:56.4]} 9. d3 {[%clk 0:02:45.3]} 9... Nd7
{[%clk 0:02:45.6]} 10. O-O {[%clk 0:02:43.5]} 10... Nc5 {[%clk 0:02:45.5]} 11.
Qa3 {[%clk 0:02:42.8]} 11... Qd6 {[%clk 0:02:42.4]} 12. Bf4 {[%clk 0:02:30.2]}
12... e5 {[%clk 0:02:41.9]} 13. Be3 {[%clk 0:02:29.8]} 13... b6 {[%clk 0:02:17]}
14. Rac1 {[%clk 0:02:26.2]} 14... Nb7 {[%clk 0:02:11.9]} 15. Qxd6 {[%clk
0:02:24.9]} 15... Nxd6 {[%clk 0:02:12.8]} 16. Rxc6 {[%clk 0:02:25.2]} 16... Nb5
{[%clk 0:01:59.7]} 17. a4 {[%clk 0:02:17.5]} 17... Bb7 {[%clk 0:01:53.6]} 18.
axb5 {[%clk 0:02:08.8]} 18... Bxc6 {[%clk 0:01:53.5]} 19. bxc6 {[%clk
0:02:09.7]} 19... Rac8 {[%clk 0:01:49.9]} 20. Nd2 {[%clk 0:02:06.6]} 20... f5
{[%clk 0:01:39]} 21. Nc4 {[%clk 0:01:59.6]} 21... e4 {[%clk 0:01:38]} 22. dxe4
{[%clk 0:01:52.7]} 22... Rxc6 {[%clk 0:01:37.9]} 23. exf5 {[%clk 0:01:53.3]}
23... Rxc4 {[%clk 0:01:37.7]} 24. Bd5+ {[%clk 0:01:52.7]} 24... Kh8 {[%clk
0:01:37.4]} 25. Bxc4 {[%clk 0:01:53.4]} 25... Rxf5 {[%clk 0:01:35.8]} 26. b3
{[%clk 0:01:52.6]} 1-0

[Event "Late-Titled-Tuesday-Blitz-October-03-2023"]
[Site "Chess.com"]
[Date "2023.10.03"]
[Round "5"]
[White "Aariow"]
[Black "ozates"]
[Result "0-1"]
[WhiteElo "2474"]
[BlackElo "2631"]
[TimeControl "180+1"]
[EndTime "14:50:39 PDT"]
[Termination "ozates won by resignation"]

1. Nf3 {[%clk 0:03:00]} 1... c5 {[%clk 0:03:00.1]} 2. e3 {[%clk 0:03:00.1]} 2...
Nc6 {[%clk 0:02:58.4]} 3. b3 {[%clk 0:03:00.2]} 3... e5 {[%clk 0:02:58.1]} 4.
Bb2 {[%clk 0:03:00.6]} 4... d6 {[%clk 0:02:56.2]} 5. Bb5 {[%clk 0:03:00.1]} 5...
Ne7 {[%clk 0:02:55.7]} 6. O-O {[%clk 0:02:57.8]} 6... a6 {[%clk 0:02:55.6]} 7.
Be2 {[%clk 0:02:57.6]} 7... g6 {[%clk 0:02:50.6]} 8. d4 {[%clk 0:02:57.7]} 8...
exd4 {[%clk 0:02:50.8]} 9. exd4 {[%clk 0:02:57.9]} 9... Bg7 {[%clk 0:02:51.4]}
10. c3 {[%clk 0:02:47.2]} 10... O-O {[%clk 0:02:50.2]} 11. dxc5 {[%clk 0:02:46]}
11... dxc5 {[%clk 0:02:50.4]} 12. Nbd2 {[%clk 0:02:46.5]} 12... Nd5 {[%clk
0:02:46.3]} 13. Qc1 {[%clk 0:02:45]} 13... Nf4 {[%clk 0:02:43]} 14. Re1 {[%clk
0:02:45.1]} 14... Re8 {[%clk 0:02:38.8]} 15. Bf1 {[%clk 0:02:42.6]} 15... Bf5
{[%clk 0:02:35.8]} 16. Rxe8+ {[%clk 0:02:33.1]} 16... Qxe8 {[%clk 0:02:35.8]}
17. Nc4 {[%clk 0:02:33.9]} 17... Bh6 {[%clk 0:02:36.2]} 18. Nd6 {[%clk
0:02:23.7]} 18... Qd7 {[%clk 0:02:24.2]} 19. Nxf5 {[%clk 0:02:15.7]} 19... Nh3+
{[%clk 0:02:16.3]} 20. gxh3 {[%clk 0:02:13.8]} 20... Bxc1 {[%clk 0:02:16]} 21.
Rxc1 {[%clk 0:02:08]} 21... Qxf5 {[%clk 0:02:14.4]} 22. Bg2 {[%clk 0:02:08.1]}
22... Re8 {[%clk 0:02:10.3]} 23. c4 {[%clk 0:02:06.1]} 23... Re2 {[%clk
0:02:03.6]} 24. Bc3 {[%clk 0:02:05.7]} 24... Nd4 {[%clk 0:02:04.2]} 25. Bxd4
{[%clk 0:02:03.1]} 25... cxd4 {[%clk 0:02:04.5]} 26. Rd1 {[%clk 0:02:03.5]}
26... d3 {[%clk 0:02:02]} 27. b4 {[%clk 0:02:02.9]} 27... Rxa2 {[%clk
0:01:57.3]} 28. c5 {[%clk 0:02:00.6]} 28... Qe4 {[%clk 0:01:54.1]} 29. Rb1
{[%clk 0:01:32.4]} 29... Qe2 {[%clk 0:01:49.7]} 30. Rf1 {[%clk 0:01:29.3]} 30...
d2 {[%clk 0:01:49.5]} 31. Nd4 {[%clk 0:01:28.6]} 31... Qxf1+ {[%clk 0:01:45.8]}
0-1

[Event "Late-Titled-Tuesday-Blitz-October-03-2023"]
[Site "Chess.com"]
[Date "2023.10.03"]
[Round "5"]
[White "FM_Kappeler"]
[Black "Doudou2015"]
[Result "1-0"]
[WhiteElo "2313"]
[BlackElo "2147"]
[TimeControl "180+1"]
[EndTime "14:50:43 PDT"]
[Termination "FM_Kappeler won by checkmate"]

1. d4 {[%clk 0:03:00.9]} 1... d5 {[%clk 0:02:59.4]} 2. c4 {[%clk 0:03:00.9]}
2... e6 {[%clk 0:02:59.6]} 3. Nf3 {[%clk 0:03:00.9]} 3... c6 {[%clk 0:02:59]} 4.
g3 {[%clk 0:03:01.3]} 4... Nf6 {[%clk 0:02:57.8]} 5. Bg2 {[%clk 0:03:00.7]} 5...
Nbd7 {[%clk 0:02:54.9]} 6. O-O {[%clk 0:03:00.4]} 6... Be7 {[%clk 0:02:54.9]} 7.
Nbd2 {[%clk 0:03:00.2]} 7... O-O {[%clk 0:02:55.3]} 8. Qc2 {[%clk 0:03:00.4]}
8... b6 {[%clk 0:02:52.9]} 9. e4 {[%clk 0:03:00]} 9... dxe4 {[%clk 0:02:47.4]}
10. Nxe4 {[%clk 0:02:59.5]} 10... Nxe4 {[%clk 0:02:41.7]} 11. Qxe4 {[%clk
0:03:00.2]} 11... Bb7 {[%clk 0:02:42.1]} 12. Re1 {[%clk 0:02:43.7]} 12... Nf6
{[%clk 0:02:35.8]} 13. Qe2 {[%clk 0:02:31.7]} 13... c5 {[%clk 0:02:26.6]} 14. d5
{[%clk 0:02:31.5]} 14... Re8 {[%clk 0:01:18.9]} 15. dxe6 {[%clk 0:02:25.7]}
15... fxe6 {[%clk 0:01:19.8]} 16. Qxe6+ {[%clk 0:02:24.3]} 16... Kh8 {[%clk
0:01:16.1]} 17. Ng5 {[%clk 0:02:20.4]} 17... Qc8 {[%clk 0:01:12.9]} 18. Nf7+
{[%clk 0:02:15.4]} 18... Kg8 {[%clk 0:00:34]} 19. Nh6+ {[%clk 0:02:13.5]} 19...
Kh8 {[%clk 0:00:34.2]} 20. Qg8+ {[%clk 0:02:12.9]} 20... Rxg8 {[%clk 0:00:35.1]}
21. Nf7# {[%clk 0:02:12.7]} 1-0

[Event "Late-Titled-Tuesday-Blitz-October-03-2023"]
[Site "Chess.com"]
[Date "2023.10.03"]
[Round "5"]
[White "jaskol95"]
[Black "vladislavkovalev"]
[Result "0-1"]
[WhiteElo "2640"]
[BlackElo "2878"]
[TimeControl "180+1"]
[EndTime "14:51:02 PDT"]
[Termination "vladislavkovalev won by resignation"]

1. d4 {[%clk 0:03:00.9]} 1... Nf6 {[%clk 0:02:59.7]} 2. Nc3 {[%clk 0:03:01.4]}
2... d5 {[%clk 0:02:59.9]} 3. Bf4 {[%clk 0:03:01.7]} 3... a6 {[%clk 0:03:00.6]}
4. e3 {[%clk 0:03:01.9]} 4... b5 {[%clk 0:03:01.2]} 5. a3 {[%clk 0:03:01.1]}
5... e6 {[%clk 0:02:57.6]} 6. b4 {[%clk 0:02:59.8]} 6... c6 {[%clk 0:02:39.3]}
7. Nf3 {[%clk 0:02:35.6]} 7... a5 {[%clk 0:02:38.2]} 8. Rb1 {[%clk 0:02:36.1]}
8... axb4 {[%clk 0:02:38.1]} 9. axb4 {[%clk 0:02:37]} 9... Nbd7 {[%clk
0:02:35.6]} 10. Bd3 {[%clk 0:02:35.5]} 10... Be7 {[%clk 0:02:27.6]} 11. Bxb5
{[%clk 0:02:18.2]} 11... cxb5 {[%clk 0:02:24.6]} 12. Nxb5 {[%clk 0:02:18.4]}
12... O-O {[%clk 0:02:15.4]} 13. O-O {[%clk 0:02:08.5]} 13... Ba6 {[%clk
0:02:11.8]} 14. c4 {[%clk 0:02:02.3]} 14... Bxb5 {[%clk 0:01:59.3]} 15. cxb5
{[%clk 0:02:02.5]} 15... Qb6 {[%clk 0:01:59.1]} 16. Qd3 {[%clk 0:02:00.5]} 16...
Bd6 {[%clk 0:01:55.9]} 17. Bxd6 {[%clk 0:01:54.8]} 17... Qxd6 {[%clk 0:01:56.8]}
18. Rfc1 {[%clk 0:01:55]} 18... Rfb8 {[%clk 0:01:53.5]} 19. Rc6 {[%clk
0:01:54.2]} 19... Qe7 {[%clk 0:01:53.3]} 20. Rbc1 {[%clk 0:01:50.9]} 20... g6
{[%clk 0:01:52.5]} 21. Rc7 {[%clk 0:01:50.4]} 21... Qxb4 {[%clk 0:01:41.6]} 22.
Ne5 {[%clk 0:01:47.1]} 22... Nxe5 {[%clk 0:01:33.8]} 23. dxe5 {[%clk 0:01:47.5]}
23... Ng4 {[%clk 0:01:24]} 24. f4 {[%clk 0:01:37.7]} 24... Qxb5 {[%clk
0:01:12.8]} 25. Rc8+ {[%clk 0:01:35]} 25... Rxc8 {[%clk 0:01:13.1]} 26. Rxc8+
{[%clk 0:01:30.2]} 26... Rxc8 {[%clk 0:01:14]} 27. Qxb5 {[%clk 0:01:30.7]} 27...
Rc1+ {[%clk 0:01:14.2]} 0-1

[Event "Late-Titled-Tuesday-Blitz-October-03-2023"]
[Site "Chess.com"]
[Date "2023.10.03"]
[Round "5"]
[White "Saraisitave"]
[Black "AlejandroBalde"]
[Result "1-0"]
[WhiteElo "2284"]
[BlackElo "2091"]
[TimeControl "180+1"]
[EndTime "14:51:49 PDT"]
[Termination "Saraisitave won on time"]

1. e4 {[%clk 0:02:51.6]} 1... c5 {[%clk 0:02:59.7]} 2. Nc3 {[%clk 0:02:51.8]}
2... Nc6 {[%clk 0:02:59.4]} 3. Nf3 {[%clk 0:02:52.2]} 3... g6 {[%clk 0:02:59.3]}
4. Bb5 {[%clk 0:02:51.2]} 4... Bg7 {[%clk 0:02:59.4]} 5. O-O {[%clk 0:02:51.1]}
5... d6 {[%clk 0:02:55.8]} 6. Re1 {[%clk 0:02:50.2]} 6... a6 {[%clk 0:02:53.4]}
7. Bf1 {[%clk 0:02:41]} 7... e6 {[%clk 0:02:22]} 8. d3 {[%clk 0:02:34.9]} 8...
Nge7 {[%clk 0:02:20.2]} 9. Be3 {[%clk 0:02:33.1]} 9... Nd4 {[%clk 0:02:19.4]}
10. g3 {[%clk 0:02:27.3]} 10... b5 {[%clk 0:02:15]} 11. Bg2 {[%clk 0:02:26]}
11... b4 {[%clk 0:02:10.4]} 12. Ne2 {[%clk 0:02:25.8]} 12... Nxe2+ {[%clk
0:02:02.8]} 13. Qxe2 {[%clk 0:02:22.6]} 13... Bxb2 {[%clk 0:02:03.4]} 14. d4
{[%clk 0:02:18]} 14... Bxa1 {[%clk 0:01:56.5]} 15. Rxa1 {[%clk 0:02:16.5]} 15...
cxd4 {[%clk 0:01:23.5]} 16. Nxd4 {[%clk 0:02:15.9]} 16... Qc7 {[%clk 0:01:09.5]}
17. e5 {[%clk 0:02:10.5]} 17... d5 {[%clk 0:01:07.6]} 18. Bg5 {[%clk 0:02:03.2]}
18... Nc6 {[%clk 0:01:03.6]} 19. Bf6 {[%clk 0:02:01.5]} 19... Nxd4 {[%clk
0:01:01.1]} 20. Qd3 {[%clk 0:02:01.4]} 20... O-O {[%clk 0:00:40.4]} 21. Qxd4
{[%clk 0:01:54.4]} 21... Qc3 {[%clk 0:00:39.6]} 22. Qf4 {[%clk 0:01:42.3]} 22...
Qxa1+ {[%clk 0:00:32.4]} 23. Bf1 {[%clk 0:01:42.5]} 1-0

[Event "Late-Titled-Tuesday-Blitz-October-03-2023"]
[Site "Chess.com"]
[Date "2023.10.03"]
[Round "5"]
[White "MajorCoast"]
[Black "Langua_Chess"]
[Result "0-1"]
[WhiteElo "2254"]
[BlackElo "2496"]
[TimeControl "180+1"]
[EndTime "14:51:53 PDT"]
[Termination "Langua_Chess won by resignation"]

1. d4 {[%clk 0:03:00.9]} 1... d5 {[%clk 0:02:59.2]} 2. Nf3 {[%clk 0:03:01.2]}
2... Nf6 {[%clk 0:02:52.3]} 3. c3 {[%clk 0:03:01.2]} 3... Bf5 {[%clk 0:02:49.7]}
4. c4 {[%clk 0:02:59.8]} 4... e6 {[%clk 0:02:44]} 5. Nc3 {[%clk 0:03:00.4]} 5...
Bb4 {[%clk 0:02:30]} 6. Ne5 {[%clk 0:02:34.6]} 6... O-O {[%clk 0:02:26.6]} 7.
Qb3 {[%clk 0:02:30.5]} 7... a5 {[%clk 0:02:19]} 8. Bd2 {[%clk 0:02:21.5]} 8...
Nc6 {[%clk 0:02:09.3]} 9. Nxc6 {[%clk 0:02:19.7]} 9... bxc6 {[%clk 0:02:10.2]}
10. e3 {[%clk 0:02:08.8]} 10... Rb8 {[%clk 0:02:06.3]} 11. Qa4 {[%clk
0:02:08.6]} 11... Ne4 {[%clk 0:01:59.7]} 12. Nxe4 {[%clk 0:02:03.9]} 12... Bxe4
{[%clk 0:02:00.6]} 13. Bxb4 {[%clk 0:01:54.1]} 13... Rxb4 {[%clk 0:02:01.5]} 14.
Qa3 {[%clk 0:01:21.3]} 14... Qh4 {[%clk 0:02:00.6]} 15. c5 {[%clk 0:00:52.5]}
15... Rfb8 {[%clk 0:01:54.3]} 16. b3 {[%clk 0:00:50.7]} 16... a4 {[%clk
0:01:55]} 17. h3 {[%clk 0:00:09.3]} 17... h6 {[%clk 0:01:43.5]} 18. Rg1 {[%clk
0:00:09.5]} 18... axb3 {[%clk 0:01:37.4]} 19. axb3 {[%clk 0:00:10.4]} 19... Rxb3
{[%clk 0:01:38.3]} 20. Qa2 {[%clk 0:00:10.8]} 20... Rb2 {[%clk 0:01:37]} 21. g3
{[%clk 0:00:05.9]} 21... Rxa2 {[%clk 0:01:33.9]} 0-1

[Event "Late-Titled-Tuesday-Blitz-October-03-2023"]
[Site "Chess.com"]
[Date "2023.10.03"]
[Round "5"]
[White "jup1978"]
[Black "miraitrunks"]
[Result "0-1"]
[WhiteElo "2493"]
[BlackElo "2216"]
[TimeControl "180+1"]
[EndTime "14:52:01 PDT"]
[Termination "miraitrunks won by resignation"]

1. d4 {[%clk 0:02:56.4]} 1... d5 {[%clk 0:02:59.3]} 2. c4 {[%clk 0:02:55]} 2...
Bf5 {[%clk 0:02:57.9]} 3. cxd5 {[%clk 0:02:52.9]} 3... Bxb1 {[%clk 0:02:57.3]}
4. Rxb1 {[%clk 0:02:52.8]} 4... Qxd5 {[%clk 0:02:56.5]} 5. Nf3 {[%clk
0:02:53.4]} 5... Qxa2 {[%clk 0:02:55.8]} 6. Bd2 {[%clk 0:02:52.5]} 6... Nf6
{[%clk 0:02:48.4]} 7. e3 {[%clk 0:02:44.2]} 7... Ne4 {[%clk 0:02:40.4]} 8. Bb4
{[%clk 0:02:33]} 8... Nc6 {[%clk 0:02:32.3]} 9. Ba3 {[%clk 0:02:26.5]} 9... e5
{[%clk 0:02:13.1]} 10. Qc2 {[%clk 0:02:24.7]} 10... Bxa3 {[%clk 0:02:08.1]} 11.
Bc4 {[%clk 0:02:15.9]} 11... Bb4+ {[%clk 0:02:05.5]} 12. Ke2 {[%clk 0:02:14.2]}
12... Nc3+ {[%clk 0:02:01.5]} 13. Qxc3 {[%clk 0:02:09.3]} 13... Bxc3 {[%clk
0:01:53.5]} 14. Bxa2 {[%clk 0:02:07.5]} 14... Bb4 {[%clk 0:01:47.2]} 15. Bd5
{[%clk 0:02:06.5]} 15... exd4 {[%clk 0:01:44.2]} 16. Bxc6+ {[%clk 0:02:05.9]}
16... bxc6 {[%clk 0:01:44]} 17. Nxd4 {[%clk 0:02:06.5]} 17... c5 {[%clk
0:01:44]} 18. Nf3 {[%clk 0:02:02.6]} 18... O-O-O {[%clk 0:01:37.2]} 19. Rhd1
{[%clk 0:02:00]} 19... f6 {[%clk 0:01:36]} 20. Ra1 {[%clk 0:01:54.2]} 20... Kb7
{[%clk 0:01:34.7]} 21. Nh4 {[%clk 0:01:44]} 21... g6 {[%clk 0:01:34.1]} 22. Nf3
{[%clk 0:01:34.9]} 22... a5 {[%clk 0:01:33.3]} 23. b3 {[%clk 0:01:31.7]} 23...
Kb6 {[%clk 0:01:31.3]} 24. h3 {[%clk 0:01:19.2]} 24... Rd6 {[%clk 0:01:30.5]}
25. Rdc1 {[%clk 0:01:18.8]} 25... Rhd8 {[%clk 0:01:29.5]} 26. Rc2 {[%clk
0:01:18.9]} 26... Kb5 {[%clk 0:01:27.4]} 27. Nh2 {[%clk 0:01:04.1]} 27... Rd2+
{[%clk 0:01:21.6]} 28. Rxd2 {[%clk 0:01:02.6]} 28... Rxd2+ {[%clk 0:01:22.5]}
29. Kf3 {[%clk 0:01:00.9]} 29... Rb2 {[%clk 0:01:22]} 30. Ng4 {[%clk 0:01:01.3]}
30... Rxb3 {[%clk 0:01:21.9]} 31. Ra2 {[%clk 0:00:55]} 31... Bc3 {[%clk
0:01:17.6]} 32. Ke4 {[%clk 0:00:48.7]} 32... f5+ {[%clk 0:01:17.1]} 0-1

[Event "Late-Titled-Tuesday-Blitz-October-03-2023"]
[Site "Chess.com"]
[Date "2023.10.03"]
[Round "5"]
[White "Sacbutt"]
[Black "maurovargas01"]
[Result "1-0"]
[WhiteElo "2257"]
[BlackElo "1916"]
[TimeControl "180+1"]
[EndTime "14:52:02 PDT"]
[Termination "Sacbutt won on time"]

1. d4 {[%clk 0:03:00.3]} 1... d5 {[%clk 0:01:58.1]} 2. c4 {[%clk 0:02:58.2]}
2... c6 {[%clk 0:01:58.2]} 3. Nf3 {[%clk 0:02:57.7]} 3... e6 {[%clk 0:01:58.5]}
4. Nc3 {[%clk 0:02:56.5]} 4... dxc4 {[%clk 0:01:58.5]} 5. a4 {[%clk 0:02:55]}
5... Bb4 {[%clk 0:01:57.1]} 6. e3 {[%clk 0:02:52.4]} 6... b5 {[%clk 0:01:57.3]}
7. Bd2 {[%clk 0:02:48.4]} 7... a5 {[%clk 0:01:53.7]} 8. axb5 {[%clk 0:02:48.4]}
8... Bxc3 {[%clk 0:01:52.4]} 9. Bxc3 {[%clk 0:02:49.3]} 9... cxb5 {[%clk
0:01:51.1]} 10. b3 {[%clk 0:02:50.1]} 10... Bb7 {[%clk 0:01:31.2]} 11. bxc4
{[%clk 0:02:49.9]} 11... b4 {[%clk 0:01:31]} 12. Bb2 {[%clk 0:02:50]} 12... Nf6
{[%clk 0:01:23.7]} 13. Bd3 {[%clk 0:02:50.1]} 13... O-O {[%clk 0:01:22]} 14. O-O
{[%clk 0:02:50.6]} 14... Nbd7 {[%clk 0:01:15.4]} 15. Qe2 {[%clk 0:02:50.3]}
15... Nb6 {[%clk 0:01:13.8]} 16. Ne5 {[%clk 0:02:47.3]} 16... a4 {[%clk
0:00:45.5]} 17. c5 {[%clk 0:02:45]} 17... Nbd5 {[%clk 0:00:42]} 18. c6 {[%clk
0:02:37.4]} 18... Bc8 {[%clk 0:00:29.5]} 19. Bc2 {[%clk 0:02:37.2]} 19... a3
{[%clk 0:00:25.9]} 20. Bc1 {[%clk 0:02:35.7]} 20... Ba6 {[%clk 0:00:18.1]} 21.
Bd3 {[%clk 0:02:33.1]} 21... Nc3 {[%clk 0:00:16.7]} 22. Qc2 {[%clk 0:02:26.2]}
22... Bxd3 {[%clk 0:00:16]} 23. Qxd3 {[%clk 0:02:26.7]} 23... Qc7 {[%clk
0:00:12.3]} 24. Bxa3 {[%clk 0:02:21.5]} 24... Ncd5 {[%clk 0:00:06.1]} 25. Bb2
{[%clk 0:02:16.7]} 25... Rfb8 {[%clk 0:00:06]} 26. g3 {[%clk 0:02:07.9]} 26...
Rxa1 {[%clk 0:00:05.3]} 27. Rxa1 {[%clk 0:02:07.3]} 27... b3 {[%clk 0:00:05.3]}
28. e4 {[%clk 0:02:04.4]} 28... Nb4 {[%clk 0:00:04.7]} 29. Qxb3 {[%clk
0:01:58.1]} 29... Nxc6 {[%clk 0:00:04.5]} 30. Qc2 {[%clk 0:01:56.3]} 30... Nxe5
{[%clk 0:00:01.1]} 31. Qxc7 {[%clk 0:01:55.2]} 1-0

[Event "Late-Titled-Tuesday-Blitz-October-03-2023"]
[Site "Chess.com"]
[Date "2023.10.03"]
[Round "5"]
[White "Lion_DL"]
[Black "YellowJacek"]
[Result "1-0"]
[WhiteElo "2489"]
[BlackElo "2290"]
[TimeControl "180+1"]
[EndTime "14:52:03 PDT"]
[Termination "Lion_DL won by resignation"]

1. e4 {[%clk 0:02:55.8]} 1... e5 {[%clk 0:02:58.9]} 2. f4 {[%clk 0:02:54.8]}
2... Nf6 {[%clk 0:02:56.8]} 3. fxe5 {[%clk 0:02:52.8]} 3... Nxe4 {[%clk
0:02:55.2]} 4. Nf3 {[%clk 0:02:53.2]} 4... d5 {[%clk 0:02:54.1]} 5. d3 {[%clk
0:02:53.6]} 5... Nc5 {[%clk 0:02:50.1]} 6. d4 {[%clk 0:02:53.9]} 6... Ne4 {[%clk
0:02:43.2]} 7. Bd3 {[%clk 0:02:54.3]} 7... Bg4 {[%clk 0:02:38.3]} 8. O-O {[%clk
0:02:51.7]} 8... Qd7 {[%clk 0:02:28.7]} 9. Nbd2 {[%clk 0:02:46.3]} 9... Nxd2
{[%clk 0:02:21.3]} 10. Bxd2 {[%clk 0:02:45.7]} 10... Nc6 {[%clk 0:02:18.7]} 11.
c3 {[%clk 0:02:43.6]} 11... Be7 {[%clk 0:02:16.3]} 12. Qc2 {[%clk 0:02:32]}
12... O-O-O {[%clk 0:02:05.7]} 13. b4 {[%clk 0:02:31.5]} 13... Kb8 {[%clk
0:02:02]} 14. a4 {[%clk 0:02:27.8]} 14... f6 {[%clk 0:01:58.1]} 15. exf6 {[%clk
0:02:25.5]} 15... Bxf6 {[%clk 0:01:57.9]} 16. a5 {[%clk 0:02:26.1]} 16... Bxf3
{[%clk 0:01:49]} 17. gxf3 {[%clk 0:02:22.2]} 17... g6 {[%clk 0:01:22.8]} 18. Kh1
{[%clk 0:02:21.4]} 18... Rhf8 {[%clk 0:01:19.2]} 19. b5 {[%clk 0:02:15.7]} 19...
Ne7 {[%clk 0:01:16.5]} 20. b6 {[%clk 0:02:11.7]} 20... a6 {[%clk 0:01:12.3]} 21.
Bf4 {[%clk 0:02:07.2]} 21... Rc8 {[%clk 0:00:59.2]} 22. Rab1 {[%clk 0:01:53.6]}
22... Ka8 {[%clk 0:00:55.6]} 23. bxc7 {[%clk 0:01:51.8]} 23... Bh4 {[%clk
0:00:46]} 24. Qd2 {[%clk 0:01:45.4]} 24... g5 {[%clk 0:00:37.5]} 25. Be5 {[%clk
0:01:41]} 25... Nc6 {[%clk 0:00:36.8]} 26. Bxa6 {[%clk 0:01:27.6]} 26... bxa6
{[%clk 0:00:31.8]} 27. Qd3 {[%clk 0:01:27.7]} 27... Ka7 {[%clk 0:00:25.9]} 28.
Rb6 {[%clk 0:01:28.2]} 1-0